[Event "Chinese Team-ch Men 2025"]
[Site "Zhang Jiakou Hebei"]
[Date "2025.04.25"]
[Round "1.9"]
[White "Wang, Yiye"]
[Black "Xiu, Deshun"]
[Result "1/2-1/2"]
[Annotator "RC"]
[ECO "D38"]
[WhiteElo "2446"]
[BlackElo "2516"]
[PlyCount "70"]
[EventDate "2025.04.26"]
[EventType "team-tourn"]
[EventCountry "CHN"]
[SourceTitle "playchess.com"]
[Source "ChessBase"]
[SourceQuality "1"]
[TimeControl "5400+30"]

1. d4 {[%emt 0:00:05]} Nf6 {[%emt 0:00:09]} 2. c4 {[%emt 0:00:10]} e6 {[%emt 0:00:07]} 3. Nc3 {[%emt 0:00:15]} Bb4 {[%emt 0:00:44]} 4. Nf3 {[%emt 0:00:58]} d5 {[%emt 0:02:59]} 5. Bg5 {[%emt 0:04:20]} h6 {[%emt 0:02:06]} 6. Bxf6 {[%emt 0:02:17]} Qxf6 {[%emt 0:00:07]} 7. e3 {[%emt 0:00:14]} O-O {[%emt 0:00:26]} 8. Rc1 {[%emt 0:03:09]} dxc4 {[%emt 0:01:59]} 9. Bxc4 {[%emt 0:00:13]} c5 {[%emt 0:00:15]} 10. O-O {[%emt 0:00:53]} cxd4 {[%emt 0:00:13]} 11. Ne4 {[%emt 0:03:53]} Qe7 {[%emt 0:07:04]} 12. a3 {[%emt 0:05:42]} Ba5 {[%emt 0:01:54]} 13. exd4 {[%emt 0:00:33]} Rd8 {[%emt 0:15:26]} 14. b4 {[%emt 0:06:51]} Bb6 {[%emt 0:02:13]} 15. Nc3 {[%emt 0:09:44]} Nc6 {[%emt 0:05:32]} 16. d5 {[%emt 0:01:14]} Qf6 {[%emt 0:02:24]} 17. Qb3 {[%emt 0:05:08]} Nd4 {[%emt 0:01:49]} 18. Nxd4 {[%emt 0:00:15]} Bxd4 {[%emt 0:00:10]} 19. dxe6 {[%emt 0:03:09]} Bxe6 {[%emt 0:01:49]} 20. Ne4 {[%emt 0:01:24]} Qf5 {[%emt 0:02:39]} 21. Bxe6 {[%emt 0:03:48]} Qxe6 {[%emt 0:05:28]} 22. Qxe6 {[%emt 0:00:12]} fxe6 {[%emt 0:00:06]} 23. Rc7 {[%emt 0:04:21]} Bb2 {[%emt 0:02:32]} 24. Rxb7 {[%emt 0:03:43]} Bxa3 {[%emt 0:00:20]} 25. Ra1 {[%emt 0:03:53]} Bb2 {[%emt 0:00:37]} 26. Rb1 {[%emt 0:00:13]} Bd4 {[%emt 0:00:49]} 27. Rc1 {[%emt 0:01:23]} Rac8 {[%emt 0:01:56]} 28. Rxc8 {[%emt 0:00:38]} Rxc8 {[%emt 0:00:07]} 29. Kf1 {[%emt 0:00:47]} Bb6 {[%emt 0:02:08]} 30. Nc5 {[%emt 0:02:40]} Bxc5 {[%emt 0:00:32]} 31. bxc5 {[%emt 0:00:08]} a6 {[%emt 0:01:49]} 32. Rb6 {[%emt 0:00:21]} Rxc5 {[%emt 0:00:10]} 33. Rxa6 {[%emt 0:00:08]} Kf7 {[%emt 0:00:05]} 34. Ra7+ {[%emt 0:00:15]} Kf6 {[%emt 0:00:06]} 35. Rb7 {[%emt 0:00:09]} Rc2 {[%emt 0:00:16]} 1/2-1/2

[Event "Chinese Team-ch Men 2025"]
[Site "Zhang Jiakou Hebei"]
[Date "2025.04.25"]
[Round "1.10"]
[White "Peng, Hongchi"]
[Black "Hou, Yifan b"]
[Result "1-0"]
[Annotator "ChessBase"]
[ECO "B31"]
[WhiteElo "2419"]
[BlackElo "2313"]
[PlyCount "73"]
[EventDate "2025.04.26"]
[EventType "team-tourn"]
[EventCountry "CHN"]
[SourceTitle "playchess.com"]
[Source "ChessBase"]
[SourceQuality "1"]
[TimeControl "5400+30"]

1. e4 {[%emt 0:00:02]} c5 {[%emt 0:00:52]} 2. Nf3 {[%emt 0:00:06]} Nc6 {[%emt 0:01:12]} 3. Bb5 {[%emt 0:00:07]} g6 {[%emt 0:02:31]} 4. O-O {[%emt 0:00:37]} Bg7 {[%emt 0:00:04]} 5. Bxc6 {[%emt 0:00:08]} dxc6 {[%emt 0:05:13]} 6. d3 {[%emt 0:00:15]} Nf6 {[%emt 0:00:56]} 7. h3 {[%emt 0:00:07]} O-O {[%emt 0:01:18]} 8. a4 {[%emt 0:00:04]} Ne8 {[%emt 0:08:02]} 9. Nc3 {[%emt 0:05:43]} e5 {[%emt 0:06:14]} 10. Be3 {[%emt 0:07:05]} Qe7 {[%emt 0:01:45]} 11. a5 {[%emt 0:01:49]} Nc7 {[%emt 0:01:46]} 12. Nd2 {[%emt 0:09:03]} Ne6 {[%emt 0:03:14]} 13. Ne2 {[%emt 0:06:46]} f5 {[%emt 0:12:12]} 14. exf5 {[%emt 0:03:51]} gxf5 {[%emt 0:00:10]} 15. Nf3 {[%emt 0:02:54]} Bd7 {[%emt 0:19:36]} 16. Re1 {[%emt 0:01:37]} Be8 {[%emt 0:05:00]} 17. Bd2 {[%emt 0:03:07]} Bh5 {[%emt 0:09:06]} 18. Ng3 {[%emt 0:01:10]} Bxf3 {[%emt 0:01:50]} 19. Qxf3 {[%emt 0:00:06]} Nd4 {[%emt 0:00:29]} 20. Qd1 {[%emt 0:03:39]} Qf7 {[%emt 0:04:04]} 21. Bc3 {[%emt 0:11:05]} Rae8 {[%emt 0:01:41]} 22. Bxd4 {[%emt 0:05:32]} cxd4 {[%emt 0:00:24]} 23. Ra3 {[%emt 0:00:34]} Re7 {[%emt 0:05:17]} 24. Qf3 {[%emt 0:02:38]} Qg6 {[%emt 0:00:58]} 25. Qh5 {[%emt 0:06:06]} Bh6 {[%emt 0:00:52]} 26. Qf3 {[%emt 0:10:23]} Rff7 {[%emt 0:02:30]} 27. Re2 {[%emt 0:02:47]} e4 {[%emt 0:02:06]} 28. dxe4 {[%emt 0:00:04]} fxe4 {[%emt 0:00:04]} 29. Qg4 {[%emt 0:00:18]} e3 {[%emt 0:01:54]} 30. Qxd4 {[%emt 0:03:18]} Rd7 {[%emt 0:01:47]} 31. Qxa7 {[%emt 0:00:33]} Rd1+ {[%emt 0:02:17]} 32. Kh2 {[%emt 0:03:41]} Bf4 {[%emt 0:00:33]} 33. Raxe3 {[%emt 0:01:04]} Bxe3 {[%emt 0:00:30]} 34. Qxe3 {[%emt 0:00:02]} Rd5 {[%emt 0:00:12]} 35. b4 {[%emt 0:01:25]} h5 {[%emt 0:00:04]} 36. Qe8+ {[%emt 0:02:26]} Kg7 {[%emt 0:00:18]} 37. c4 {[%emt 0:02:15]} 1-0

[Event "Chinese Team-ch Men 2025"]
[Site "Zhang Jiakou Hebei"]
[Date "2025.04.25"]
[Round "1.11"]
[White "Fan, Huifeng"]
[Black "Zhang, Di"]
[Result "0-1"]
[Annotator "ChessBase"]
[ECO "B22"]
[WhiteElo "2178"]
[BlackElo "2406"]
[PlyCount "50"]
[EventDate "2025.04.26"]
[EventType "team-tourn"]
[EventCountry "CHN"]
[SourceTitle "playchess.com"]
[Source "ChessBase"]
[SourceQuality "1"]
[TimeControl "5400+30"]

1. e4 {[%emt 0:00:05]} c5 {[%emt 0:00:07]} 2. c3 {[%emt 0:00:18]} Nf6 {[%emt 0:02:18]} 3. e5 {[%emt 0:00:08]} Nd5 {[%emt 0:00:04]} 4. Nf3 {[%emt 0:00:05]} Nc6 {[%emt 0:03:19]} 5. d4 {[%emt 0:01:03]} cxd4 {[%emt 0:00:10]} 6. cxd4 {[%emt 0:00:04]} e6 {[%emt 0:01:12]} 7. Bc4 {[%emt 0:00:19]} d6 {[%emt 0:10:35]} 8. O-O {[%emt 0:00:27]} Be7 {[%emt 0:00:15]} 9. Qe2 {[%emt 0:00:10]} O-O {[%emt 0:04:16]} 10. Nc3 {[%emt 0:00:13]} Nxc3 {[%emt 0:00:19]} 11. bxc3 {[%emt 0:00:05]} dxe5 {[%emt 0:01:35]} 12. dxe5 {[%emt 0:00:07]} Qc7 {[%emt 0:00:07]} 13. Qe4 {[%emt 0:15:55]} b6 {[%emt 0:04:40]} 14. Re1 {[%emt 0:05:41]} Bb7 {[%emt 0:03:42]} 15. Qg4 {[%emt 0:00:52]} Rfd8 {[%emt 0:07:53]} 16. Bh6 {[%emt 0:09:56]} Bf8 {[%emt 0:00:25]} 17. Re3 {[%emt 0:31:46]} Ne7 {[%emt 0:24:22]} 18. Ng5 {[%emt 0:09:42]} Nf5 {[%emt 0:08:11]} 19. Rh3 {[%emt 0:00:19]} Qxe5 {[%emt 0:03:20]} 20. Nxh7 {[%emt 0:00:09]} Nxh6 {[%emt 0:09:46]} 21. Rxh6 {[%emt 0:00:15]} Be7 {[%emt 0:00:07]} 22. Bxe6 {[%emt 0:17:38]} fxe6 {[%emt 0:04:01]} 23. Rxe6 {[%emt 0:00:04]} Qxc3 {[%emt 0:01:47]} 24. Ree1 {[%emt 0:05:09]} Kxh7 {[%emt 0:01:00]} 25. Rac1 {[%emt 0:00:43]} Qf6 {[%emt 0:01:04]} 0-1

[Event "Chinese Team-ch Men 2025"]
[Site "Zhang Jiakou Hebei"]
[Date "2025.04.25"]
[Round "1.12"]
[White "Zhang, Zhi"]
[Black "Qu, Yanqiao"]
[Result "1-0"]
[Annotator "ChessBase"]
[ECO "D37"]
[WhiteElo "2167"]
[BlackElo "1969"]
[PlyCount "65"]
[EventDate "2025.04.26"]
[EventType "team-tourn"]
[EventCountry "CHN"]
[SourceTitle "playchess.com"]
[Source "ChessBase"]
[SourceQuality "1"]
[TimeControl "5400+30"]

1. d4 {[%emt 0:00:04]} d5 {[%emt 0:00:25]} 2. c4 {[%emt 0:00:23]} e6 {[%emt 0:00:12]} 3. Nc3 {[%emt 0:00:17]} Be7 {[%emt 0:00:07]} 4. Nf3 {[%emt 0:00:22]} Nf6 {[%emt 0:00:07]} 5. Bf4 {[%emt 0:00:13]} O-O {[%emt 0:00:08]} 6. e3 {[%emt 0:00:11]} Nbd7 {[%emt 0:00:07]} 7. c5 {[%emt 0:01:52]} c6 {[%emt 0:00:30]} 8. Bd3 {[%emt 0:01:29]} b6 {[%emt 0:06:21]} 9. b4 {[%emt 0:00:11]} a5 {[%emt 0:01:57]} 10. a3 {[%emt 0:00:25]} Ba6 {[%emt 0:11:01]} 11. Bxa6 {[%emt 0:04:28]} Rxa6 {[%emt 0:00:04]} 12. h3 {[%emt 0:00:16]} Ne4 {[%emt 0:24:14]} 13. Ne2 {[%emt 0:07:05]} Qa8 {[%emt 0:08:28]} 14. O-O {[%emt 0:02:26]} b5 {[%emt 0:01:59]} 15. Ne5 {[%emt 0:26:32]} Qb7 {[%emt 0:03:16]} 16. Nxd7 {[%emt 0:05:29]} Qxd7 {[%emt 0:00:07]} 17. f3 {[%emt 0:00:07]} Nf6 {[%emt 0:01:34]} 18. a4 {[%emt 0:00:23]} Qb7 {[%emt 0:16:03]} 19. axb5 {[%emt 0:11:17]} Qxb5 {[%emt 0:00:26]} 20. bxa5 {[%emt 0:00:29]} Rxa5 {[%emt 0:00:52]} 21. Rxa5 {[%emt 0:03:19]} Qxa5 {[%emt 0:00:03]} 22. Qa1 {[%emt 0:00:27]} Qxa1 {[%emt 0:08:10]} 23. Rxa1 {[%emt 0:00:04]} Rc8 {[%emt 0:00:06]} 24. Nc3 {[%emt 0:11:09]} Ne8 {[%emt 0:07:21]} 25. Ra7 {[%emt 0:02:51]} Kf8 {[%emt 0:02:19]} 26. Na4 {[%emt 0:00:20]} f6 {[%emt 0:01:00]} 27. Nb6 {[%emt 0:00:58]} Rd8 {[%emt 0:00:07]} 28. Bc7 {[%emt 0:04:24]} Nxc7 {[%emt 0:00:42]} 29. Rxc7 {[%emt 0:00:04]} e5 {[%emt 0:00:21]} 30. Rxc6 {[%emt 0:00:49]} exd4 {[%emt 0:00:01]} 31. exd4 {[%emt 0:00:03]} f5 {[%emt 0:00:24]} 32. Rc7 {[%emt 0:03:57]} Bg5 {[%emt 0:01:35]} 33. Kf2 {[%emt 0:00:29]} 1-0

[Event "Chinese Team-ch Men 2025"]
[Site "Zhang Jiakou Hebei"]
[Date "2025.04.25"]
[Round "1.13"]
[White "Li, Di"]
[Black "Wan, Yunguo"]
[Result "0-1"]
[Annotator "RC"]
[ECO "A36"]
[WhiteElo "2571"]
[BlackElo "2500"]
[PlyCount "74"]
[EventDate "2025.04.26"]
[EventType "team-tourn"]
[EventCountry "CHN"]
[SourceTitle "playchess.com"]
[Source "ChessBase"]
[SourceQuality "1"]
[TimeControl "5400+30"]

1. e4 {[%emt 0:00:03]} c5 {[%emt 0:02:05]} 2. c4 {[%emt 0:00:05]} Nc6 {[%emt 0:01:27]} 3. Nc3 {[%emt 0:00:05]} g6 {[%emt 0:01:46]} 4. g3 {[%emt 0:00:04]} Bg7 {[%emt 0:01:38]} 5. Bg2 {[%emt 0:00:05]} d6 {[%emt 0:00:22]} 6. d3 {[%emt 0:01:02]} e5 {[%emt 0:03:12]} 7. Rb1 {[%emt 0:03:34]} Rb8 {[%emt 0:03:06]} 8. a3 {[%emt 0:01:17]} a5 {[%emt 0:01:01]} 9. Be3 {[%emt 0:04:46]} Nd4 {[%emt 0:04:00]} 10. Nf3 {[%emt 0:07:36]} Ne7 {[%emt 0:02:16]} 11. b4 {[%emt 0:25:01]} axb4 {[%emt 0:21:45]} 12. axb4 {[%emt 0:00:04]} cxb4 {[%emt 0:01:33]} 13. Nd5 {[%emt 0:01:24]} Nxf3+ {[%emt 0:06:12]} 14. Bxf3 {[%emt 0:04:49]} Nxd5 {[%emt 0:08:44]} 15. cxd5 {[%emt 0:00:05]} Bh3 {[%emt 0:01:55]} 16. Bg4 {[%emt 0:01:05]} Bxg4 {[%emt 0:00:15]} 17. Qxg4 {[%emt 0:00:04]} O-O {[%emt 0:00:10]} 18. O-O {[%emt 0:02:28]} f5 {[%emt 0:00:53]} 19. Qh3 {[%emt 0:01:08]} Qa5 {[%emt 0:05:07]} 20. Rfc1 {[%emt 0:18:05]} Qb5 {[%emt 0:01:11]} 21. Rb3 {[%emt 0:02:38]} Rf7 {[%emt 0:04:31]} 22. Rc4 {[%emt 0:15:59]} fxe4 {[%emt 0:02:39]} 23. Rc8+ {[%emt 0:01:01]} Rxc8 {[%emt 0:00:06]} 24. Qxc8+ {[%emt 0:00:02]} Bf8 {[%emt 0:08:45]} 25. Qc4 {[%emt 0:05:11]} Qa6 {[%emt 0:01:08]} 26. Qxe4 {[%emt 0:00:35]} Bh6 {[%emt 0:01:21]} 27. Rxb4 {[%emt 0:04:13]} Bxe3 {[%emt 0:00:25]} 28. Qxe3 {[%emt 0:00:02]} Qa5 {[%emt 0:00:28]} 29. Qe4 {[%emt 0:01:54]} Qc5 {[%emt 0:00:27]} 30. Kh1 {[%emt 0:00:34]} Qxf2 {[%emt 0:01:16]} 31. Rb1 {[%emt 0:00:01]} Qc2 {[%emt 0:00:12]} 32. Ra1 {[%emt 0:00:16]} Rf2 {[%emt 0:00:49]} 33. Kg1 {[%emt 0:00:50]} Kg7 {[%emt 0:02:31]} 34. Rf1 {[%emt 0:00:53]} Rxf1+ {[%emt 0:00:28]} 35. Kxf1 {[%emt 0:00:01]} Qxh2 {[%emt 0:00:09]} 36. Qg4 {[%emt 0:00:59]} Qh1+ {[%emt 0:00:07]} 37. Ke2 {[%emt 0:00:26]} Qh5 {[%emt 0:00:04]} 0-1

[Event "Chinese Team-ch Men 2025"]
[Site "Zhang Jiakou Hebei"]
[Date "2025.04.25"]
[Round "1.14"]
[White "Zhang, Ziji"]
[Black "Zhao, Yuanhe"]
[Result "0-1"]
[Annotator "ChessBase"]
[ECO "E62"]
[WhiteElo "2371"]
[BlackElo "2482"]
[PlyCount "130"]
[EventDate "2025.04.26"]
[EventType "team-tourn"]
[EventCountry "CHN"]
[SourceTitle "playchess.com"]
[Source "ChessBase"]
[SourceQuality "1"]
[TimeControl "5400+30"]

1. d4 {[%emt 0:00:07]} Nf6 {[%emt 0:00:17]} 2. c4 {[%emt 0:00:16]} d6 {[%emt 0:00:40]} 3. Nf3 {[%emt 0:01:45]} g6 {[%emt 0:00:09]} 4. g3 {[%emt 0:02:33]} Bf5 {[%emt 0:03:39]} 5. Bg2 {[%emt 0:00:59]} c6 {[%emt 0:01:54]} 6. O-O {[%emt 0:08:39]} Bg7 {[%emt 0:00:06]} 7. Nc3 {[%emt 0:00:10]} O-O {[%emt 0:00:20]} 8. Bg5 {[%emt 0:06:46]} Ne4 {[%emt 0:03:05]} 9. Nxe4 {[%emt 0:00:35]} Bxe4 {[%emt 0:00:05]} 10. Qd2 {[%emt 0:02:48]} Re8 {[%emt 0:00:18]} 11. Rac1 {[%emt 0:07:44]} Nd7 {[%emt 0:00:58]} 12. Rfd1 {[%emt 0:00:45]} Qc7 {[%emt 0:05:16]} 13. Qf4 {[%emt 0:07:02]} f5 {[%emt 0:07:02]} 14. Qd2 {[%emt 0:02:52]} a5 {[%emt 0:12:51]} 15. Bf1 {[%emt 0:10:20]} Bxf3 {[%emt 0:04:04]} 16. exf3 {[%emt 0:00:04]} a4 {[%emt 0:01:30]} 17. Rc2 {[%emt 0:07:00]} Qa5 {[%emt 0:08:15]} 18. Qc1 {[%emt 0:00:17]} e6 {[%emt 0:02:29]} 19. h4 {[%emt 0:12:55]} d5 {[%emt 0:01:31]} 20. h5 {[%emt 0:03:03]} dxc4 {[%emt 0:03:17]} 21. hxg6 {[%emt 0:00:12]} hxg6 {[%emt 0:00:06]} 22. Bxc4 {[%emt 0:00:16]} Nb6 {[%emt 0:01:06]} 23. Kg2 {[%emt 0:01:30]} Nd5 {[%emt 0:07:12]} 24. Re2 {[%emt 0:01:08]} Kf7 {[%emt 0:00:31]} 25. a3 {[%emt 0:01:23]} Rh8 {[%emt 0:05:57]} 26. Rde1 {[%emt 0:09:23]} Rae8 {[%emt 0:00:21]} 27. Qd1 {[%emt 0:00:40]} Rh5 {[%emt 0:05:56]} 28. f4 {[%emt 0:01:21]} Rhh8 {[%emt 0:00:07]} 29. Ba2 {[%emt 0:01:30]} Qb5 {[%emt 0:03:09]} 30. Qd2 {[%emt 0:01:45]} Rh5 {[%emt 0:00:43]} 31. Qd1 {[%emt 0:01:15]} Bf8 {[%emt 0:00:44]} 32. Rc2 {[%emt 0:02:31]} Bd6 {[%emt 0:02:33]} 33. Bc4 {[%emt 0:00:06]} Qa5 {[%emt 0:02:03]} 34. Be2 {[%emt 0:00:19]} Rh7 {[%emt 0:00:59]} 35. Bf3 {[%emt 0:00:06]} Qb5 {[%emt 0:01:23]} 36. Rce2 {[%emt 0:01:09]} Nc7 {[%emt 0:00:31]} 37. d5 {[%emt 0:02:46]} Nxd5 {[%emt 0:02:29]} 38. Qd4 {[%emt 0:00:49]} Qb3 {[%emt 0:03:45]} 39. Re3 {[%emt 0:01:00]} Qb6 {[%emt 0:00:11]} 40. Qxb6 {[%emt 0:02:59]} Nxb6 {[%emt 0:00:04]} 41. Bd1 {[%emt 0:00:17]} Bc5 {[%emt 0:01:03]} 42. Rd3 {[%emt 0:00:18]} Ra8 {[%emt 0:01:26]} 43. Re2 {[%emt 0:01:02]} Nd5 {[%emt 0:02:59]} 44. Rc2 {[%emt 0:00:07]} Bf8 {[%emt 0:00:02]} 45. Rc4 {[%emt 0:00:42]} Bg7 {[%emt 0:04:28]} 46. Rd2 {[%emt 0:00:21]} Rhh8 {[%emt 0:02:56]} 47. Rxa4 {[%emt 0:00:06]} Rxa4 {[%emt 0:00:02]} 48. Bxa4 {[%emt 0:00:04]} Ra8 {[%emt 0:00:04]} 49. Bd1 {[%emt 0:00:35]} Ke8 {[%emt 0:01:04]} 50. Be2 {[%emt 0:01:45]} Kd7 {[%emt 0:00:04]} 51. Kf1 {[%emt 0:00:25]} b5 {[%emt 0:00:25]} 52. Bd1 {[%emt 0:00:55]} Kd6 {[%emt 0:00:15]} 53. Ke2 {[%emt 0:00:35]} c5 {[%emt 0:00:03]} 54. Ke1 {[%emt 0:00:44]} c4 {[%emt 0:00:17]} 55. Rc2 {[%emt 0:00:44]} c3 {[%emt 0:00:20]} 56. bxc3 {[%emt 0:00:07]} Bxc3+ {[%emt 0:00:03]} 57. Kf1 {[%emt 0:00:03]} Rxa3 {[%emt 0:00:07]} 58. Bh6 {[%emt 0:00:54]} Ra8 {[%emt 0:00:37]} 59. Rc1 {[%emt 0:00:03]} Rh8 {[%emt 0:02:14]} 60. Bg5 {[%emt 0:00:05]} Rh1+ {[%emt 0:00:05]} 61. Ke2 {[%emt 0:00:07]} Bb2 {[%emt 0:01:10]} 62. Rc8 {[%emt 0:00:32]} Nc3+ {[%emt 0:01:30]} 63. Kd2 {[%emt 0:00:03]} Nxd1 {[%emt 0:00:12]} 64. Kc2 {[%emt 0:00:12]} Kd5 {[%emt 0:00:30]} 65. Rd8+ {[%emt 0:00:25]} Ke4 {[%emt 0:00:05]} 0-1

[Event "Chinese Team-ch Men 2025"]
[Site "Zhang Jiakou Hebei"]
[Date "2025.04.25"]
[Round "1.15"]
[White "Jiang, Qinyu"]
[Black "Fan, Jingyi"]
[Result "1-0"]
[Annotator "ChessBase"]
[ECO "B41"]
[WhiteElo "2280"]
[BlackElo "2175"]
[PlyCount "103"]
[EventDate "2025.04.26"]
[EventType "team-tourn"]
[EventCountry "CHN"]
[SourceTitle "playchess.com"]
[Source "ChessBase"]
[SourceQuality "1"]
[TimeControl "5400+30"]

1. e4 {[%emt 0:00:00]} c5 {[%emt 0:00:08]} 2. Nf3 {[%emt 0:00:01]} e6 {[%emt 0:00:10]} 3. d4 {[%emt 0:00:01]} cxd4 {[%emt 0:00:06]} 4. Nxd4 {[%emt 0:00:01]} a6 {[%emt 0:00:15]} 5. a3 {[%emt 0:00:02]} b5 {[%emt 0:00:38]} 6. a4 {[%emt 0:00:01]} b4 {[%emt 0:00:36]} 7. Nd2 {[%emt 0:00:01]} Qc7 {[%emt 0:01:36]} 8. Bd3 {[%emt 0:00:02]} Nf6 {[%emt 0:00:26]} 9. Qe2 {[%emt 0:00:20]} d6 {[%emt 0:03:55]} 10. N2b3 {[%emt 0:03:11]} Bb7 {[%emt 0:05:39]} 11. Bd2 {[%emt 0:00:12]} d5 {[%emt 0:02:06]} 12. e5 {[%emt 0:00:01]} Ne4 {[%emt 0:00:51]} 13. f4 {[%emt 0:00:01]} Nd7 {[%emt 0:05:39]} 14. Be3 {[%emt 0:03:12]} Ndc5 {[%emt 0:08:40]} 15. O-O {[%emt 0:01:18]} Be7 {[%emt 0:07:17]} 16. f5 {[%emt 0:08:59]} Qxe5 {[%emt 0:10:21]} 17. Bf4 {[%emt 0:00:22]} Qf6 {[%emt 0:01:01]} 18. fxe6 {[%emt 0:00:01]} Nxe6 {[%emt 0:02:17]} 19. Be3 {[%emt 0:00:10]} Qe5 {[%emt 0:06:13]} 20. Nxe6 {[%emt 0:04:05]} Qxe6 {[%emt 0:20:24]} 21. Nd4 {[%emt 0:00:15]} Qe5 {[%emt 0:00:13]} 22. Nf5 {[%emt 0:01:32]} Nd6 {[%emt 0:02:30]} 23. Bd4 {[%emt 0:10:35]} Qxe2 {[%emt 0:00:35]} 24. Nxg7+ {[%emt 0:00:02]} Kd7 {[%emt 0:02:08]} 25. Bxe2 {[%emt 0:00:03]} Rhg8 {[%emt 0:02:09]} 26. Nf5 {[%emt 0:02:26]} Nxf5 {[%emt 0:05:54]} 27. Rxf5 {[%emt 0:00:02]} Raf8 {[%emt 0:01:47]} 28. Rh5 {[%emt 0:05:02]} Kc6 {[%emt 0:03:28]} 29. Rf1 {[%emt 0:01:40]} Bc8 {[%emt 0:04:12]} 30. Rxh7 {[%emt 0:00:23]} Be6 {[%emt 0:00:14]} 31. Bxa6 {[%emt 0:02:21]} Rg4 {[%emt 0:00:09]} 32. Bb5+ {[%emt 0:00:07]} Kb7 {[%emt 0:00:32]} 33. c3 {[%emt 0:00:02]} Bg5 {[%emt 0:03:50]} 34. Bc5 {[%emt 0:08:05]} bxc3 {[%emt 0:00:23]} 35. Bxf8 {[%emt 0:00:36]} Be3+ {[%emt 0:00:23]} 36. Kh1 {[%emt 0:00:11]} c2 {[%emt 0:00:21]} 37. Bh6 {[%emt 0:03:19]} Bxh6 {[%emt 0:01:07]} 38. Rxh6 {[%emt 0:00:01]} Rd4 {[%emt 0:00:40]} 39. Be2 {[%emt 0:00:02]} Rd2 {[%emt 0:00:30]} 40. Bf3 {[%emt 0:00:15]} Kb6 {[%emt 0:00:25]} 41. h4 {[%emt 0:01:09]} d4 {[%emt 0:00:16]} 42. Kg1 {[%emt 0:01:52]} d3 {[%emt 0:00:26]} 43. Rc1 {[%emt 0:00:23]} Kc5 {[%emt 0:00:36]} 44. a5 {[%emt 0:05:21]} Kd4 {[%emt 0:00:35]} 45. Rxe6 {[%emt 0:01:25]} fxe6 {[%emt 0:00:08]} 46. a6 {[%emt 0:00:02]} Ke3 {[%emt 0:01:03]} 47. a7 {[%emt 0:00:11]} Re2 {[%emt 0:00:36]} 48. Bxe2 {[%emt 0:00:16]} Kxe2 {[%emt 0:00:28]} 49. a8=Q {[%emt 0:00:05]} Kd2 {[%emt 0:00:05]} 50. Qa1 {[%emt 0:00:19]} e5 {[%emt 0:00:13]} 51. Re1 {[%emt 0:00:05]} e4 {[%emt 0:00:11]} 52. Qc1# {[%emt 0:00:32]} 1-0

[Event "Chinese Team-ch Men 2025"]
[Site "Zhang Jiakou Hebei"]
[Date "2025.04.25"]
[Round "1.16"]
[White "Zhang, Jingran"]
[Black "Gong, Bonuonuo"]
[Result "1-0"]
[Annotator "NA"]
[ECO "A26"]
[WhiteElo "1787"]
[BlackElo "1709"]
[PlyCount "101"]
[EventDate "2025.04.26"]
[EventType "team-tourn"]
[EventCountry "CHN"]
[SourceTitle "playchess.com"]
[Source "ChessBase"]
[SourceQuality "1"]
[TimeControl "5400+30"]

1. Nf3 {[%emt 0:00:09]} g6 {[%emt 0:00:18]} 2. g3 {[%emt 0:00:12]} Bg7 {[%emt 0:00:08]} 3. Bg2 {[%emt 0:00:04]} e5 {[%emt 0:00:06]} 4. d3 {[%emt 0:01:29]} Nc6 {[%emt 0:02:33]} 5. O-O {[%emt 0:00:52]} d6 {[%emt 0:01:03]} 6. c4 {[%emt 0:01:22]} f5 {[%emt 0:02:20]} 7. Nc3 {[%emt 0:00:55]} Nf6 {[%emt 0:01:05]} 8. Rb1 {[%emt 0:00:18]} O-O {[%emt 0:02:57]} 9. b4 {[%emt 0:00:30]} h6 {[%emt 0:02:31]} 10. Qc2 {[%emt 0:04:50]} g5 {[%emt 0:05:44]} 11. b5 {[%emt 0:04:06]} Ne7 {[%emt 0:01:36]} 12. c5 {[%emt 0:01:17]} Be6 {[%emt 0:11:36]} 13. a4 {[%emt 0:00:56]} Ned5 {[%emt 0:08:30]} 14. Nxd5 {[%emt 0:01:08]} Bxd5 {[%emt 0:00:31]} 15. Ba3 {[%emt 0:00:13]} Qe7 {[%emt 0:09:33]} 16. Rfc1 {[%emt 0:00:40]} e4 {[%emt 0:10:14]} 17. Nd4 {[%emt 0:02:07]} exd3 {[%emt 0:17:54]} 18. Qxd3 {[%emt 0:01:50]} Bxg2 {[%emt 0:06:57]} 19. Kxg2 {[%emt 0:00:25]} Ne4 {[%emt 0:05:39]} 20. Qc4+ {[%emt 0:00:42]} Kh7 {[%emt 0:00:34]} 21. cxd6 {[%emt 0:03:38]} cxd6 {[%emt 0:00:15]} 22. Ne6 {[%emt 0:02:03]} Rfc8 {[%emt 0:01:09]} 23. Qd5 {[%emt 0:00:50]} Kg6 {[%emt 0:06:34]} 24. Nxg7 {[%emt 0:00:27]} Qxg7 {[%emt 0:00:17]} 25. Rxc8 {[%emt 0:00:10]} Rxc8 {[%emt 0:01:16]} 26. Qe6+ {[%emt 0:00:02]} Qf6 {[%emt 0:00:54]} 27. Qxc8 {[%emt 0:00:07]} Qd4 {[%emt 0:00:33]} 28. Qg8+ {[%emt 0:00:10]} Qg7 {[%emt 0:00:28]} 29. Qxg7+ {[%emt 0:00:15]} Kxg7 {[%emt 0:00:04]} 30. Rc1 {[%emt 0:00:03]} Kf6 {[%emt 0:00:10]} 31. f3 {[%emt 0:00:30]} Nd2 {[%emt 0:00:12]} 32. Bb2+ {[%emt 0:00:22]} Ke6 {[%emt 0:00:06]} 33. Rc3 {[%emt 0:00:12]} d5 {[%emt 0:00:13]} 34. Rc7 {[%emt 0:00:13]} Nc4 {[%emt 0:00:08]} 35. Bd4 {[%emt 0:00:08]} b6 {[%emt 0:00:15]} 36. Rxa7 {[%emt 0:00:06]} Kd6 {[%emt 0:00:11]} 37. Rh7 {[%emt 0:00:29]} h5 {[%emt 0:00:20]} 38. Rxh5 {[%emt 0:00:06]} Kc7 {[%emt 0:00:13]} 39. Rxg5 {[%emt 0:00:06]} Nd6 {[%emt 0:00:13]} 40. Be5 {[%emt 0:00:06]} Kd7 {[%emt 0:00:09]} 41. Bxd6 {[%emt 0:00:08]} Kxd6 {[%emt 0:00:06]} 42. h4 {[%emt 0:00:02]} d4 {[%emt 0:00:08]} 43. Rxf5 {[%emt 0:00:04]} d3 {[%emt 0:00:07]} 44. exd3 {[%emt 0:00:03]} Kc7 {[%emt 0:00:07]} 45. h5 {[%emt 0:00:02]} Kd6 {[%emt 0:00:07]} 46. h6 {[%emt 0:00:03]} Kc7 {[%emt 0:00:10]} 47. h7 {[%emt 0:00:02]} Kd6 {[%emt 0:00:07]} 48. h8=Q {[%emt 0:00:06]} Kc7 {[%emt 0:00:05]} 49. Qd4 {[%emt 0:00:35]} Kb7 {[%emt 0:00:07]} 50. Qd7+ {[%emt 0:00:03]} Kb8 {[%emt 0:00:07]} 51. Rf8# {[%emt 0:00:03]} 1-0